bitfinex-derivatives/quotes_BTCF0:USTF0_20251229
["timestamp","ask_amount","ask_price","bid_price","bid_amount"]
[1767031281583,0.0113919,87868.0,87848.0,0.01367107]
[1767031281887,0.05708,87867.0,87848.0,0.01367107]
[1767031282479,0.0113921,87866.0,87848.0,0.00227667]
[1767031282693,0.0113924,87864.0,87848.0,0.00227667]
[1767031282990,0.0968,87865.0,87848.0,0.00227667]
[1767031284781,0.0113924,87864.0,87848.0,0.00227667]
[1767031285190,0.0968,87865.0,87848.0,0.00227667]
[1767031286087,0.1081922,87865.0,87848.0,0.00227667]
[1767031288198,0.0968,87865.0,87848.0,0.01367097]
[1767031288586,0.0113924,87864.0,87848.0,0.00227667]
[1767031288997,0.0968,87865.0,87848.0,0.00227667]
[1767031289396,0.0968,87865.0,87860.0,0.1]
[1767031290286,0.09684,87865.0,87860.0,0.1]
[1767031290686,0.00017069,87880.0,87860.0,0.1]
[1767031290988,0.05712,87879.0,87867.0,0.0113919]
[1767031292294,9e-08,87880.0,87860.0,0.1]
[1767031292600,9e-08,87880.0,87872.0,0.0113912]
[1767031293593,9e-08,87880.0,87874.0,0.0113909]
[1767031293803,0.06130165,87910.0,87867.0,0.00017069]
[1767031294095,0.0113847,87923.0,87893.0,0.0113885]
[1767031294096,0.17763632,87906.0,87893.0,0.0113885]
[1767031294306,0.02367632,87905.0,87889.0,0.011389]
[1767031294597,0.15396,87906.0,87889.0,0.011389]
[1767031294787,0.02367657,87905.0,87889.0,0.011389]
[1767031294982,0.16551769,87906.0,87889.0,0.01155969]
[1767031295187,0.02367657,87905.0,87889.0,0.01155969]
[1767031295389,0.16551769,87906.0,87889.0,0.01155969]
[1767031295595,0.02368087,87905.0,87889.0,0.00017069]
[1767031295790,0.16551769,87906.0,87889.0,0.00017069]
[1767031296093,0.0113872,87904.0,87889.0,0.00017069]
[1767031296485,0.0113877,87901.0,87881.0,0.0113901]
[1767031296890,0.0113874,87903.0,87883.0,0.0113898]
[1767031301501,0.00017069,87906.0,87896.0,0.0113881]
[1767031301808,0.00017069,87906.0,87899.0,0.0113877]
[1767031301994,9e-08,87906.0,87891.0,0.05708]
[1767031302200,0.05708,87910.0,87899.0,0.0113877]
[1767031302605,0.0113851,87921.0,87899.0,0.0113877]
[1767031302808,0.15388,87920.0,87899.0,0.0113877]
[1767031303210,0.00017069,87918.0,87901.0,0.00017069]
[1767031303703,0.036,87917.0,87901.0,0.00017069]
[1767031303904,0.036,87917.0,87908.0,0.0113866]
[1767031304812,0.036,87917.0,87905.0,0.011387]
[1767031305411,0.036,87917.0,87901.0,0.00017069]
[1767031305614,0.00017069,87918.0,87902.0,0.05708]
[1767031306009,0.05708,87922.0,87913.0,0.011386]
[1767031306212,0.05708,87929.0,87915.0,0.0113856]
[1767031306516,0.05708,87929.0,87912.0,0.0113861]
[1767031307006,0.05725069,87929.0,87912.0,0.0113861]
[1767031308503,0.05725069,87929.0,87914.0,0.0113858]
[1767031309208,0.05725069,87929.0,87902.0,0.05708]
[1767031309209,0.00017069,87929.0,87910.0,0.0968]
[1767031309404,0.00017069,87929.0,87918.0,0.0113853]
[1767031310018,0.00017069,87929.0,87914.0,0.0113858]
[1767031310413,0.01155469,87929.0,87914.0,0.0113858]
[1767031310619,0.01155469,87929.0,87910.0,0.0968]
[1767031311118,0.00017069,87929.0,87914.0,0.0113858]
[1767031312519,0.00017069,87929.0,87916.0,0.0113855]
[1767031313722,0.00017069,87929.0,87912.0,0.011386]
[1767031314019,0.00017069,87929.0,87914.0,0.0113858]
[1767031316123,0.00017069,87929.0,87911.0,0.0113862]
[1767031316439,0.00017069,87929.0,87913.0,0.0113859]
[1767031316638,0.00017069,87929.0,87910.0,0.0968]
[1767031316841,0.00017069,87929.0,87922.0,0.0113848]
[1767031317038,0.00017069,87929.0,87919.0,0.0113851]
[1767031317236,0.00017069,87929.0,87910.0,0.0968]
[1767031317639,0.00017069,87929.0,87923.0,0.0113846]
[1767031317834,0.00017069,87929.0,87920.0,0.011385]
[1767031318732,0.00227434,87938.0,87927.0,0.0113841]
[1767031318933,0.0113795,87963.0,87933.0,0.0113833]
[1767031318934,0.06125453,87956.0,87933.0,0.0113833]
[1767031319137,0.15388,87955.0,87933.0,0.0113833]
[1767031319334,0.15388,87954.0,87933.0,0.0113833]
[1767031319542,0.0968,87960.0,87925.0,0.05708]
[1767031319742,0.0113792,87966.0,87948.0,0.0113814]
[1767031320243,0.0684591,87967.0,87948.0,0.0113814]
[1767031320541,0.0113797,87962.0,87941.0,0.0968]
[1767031320943,0.00017059,87960.0,87941.0,0.0968]
[1767031321941,0.00017059,87960.0,87947.0,0.0113815]
[1767031322741,0.00017059,87960.0,87944.0,0.0113819]
[1767031322938,0.00227357,87968.0,87942.0,0.0113821]
[1767031323140,0.09676,87978.0,87959.0,0.01138]
[1767031323740,0.09676,87978.0,87956.0,0.09676]
[1767031323936,0.00017059,87976.0,87964.0,0.0113793]
[1767031324134,0.0113761,87990.0,87967.0,0.0113789]
[1767031324338,0.0113761,87990.0,87967.0,0.1081389]
[1767031324644,0.0113768,87985.0,87966.0,0.09676]
[1767031324847,0.10077173,88008.0,87958.0,0.00017059]
[1767031325147,0.050891,88008.0,87980.0,0.0113772]
[1767031325344,0.0395172,88008.0,87983.0,0.0113769]
[1767031325544,0.0395172,88008.0,87984.0,0.09676]
[1767031325847,0.0395172,88008.0,87985.0,0.15388]
[1767031325848,0.0113739,88007.0,87985.0,0.15388]
[1767031326042,0.0508909,88008.0,87985.0,0.15388]
[1767031326233,0.0508909,88008.0,87988.0,0.00017049]
[1767031326539,0.0508909,88008.0,87989.0,0.09676]
[1767031327036,0.0113742,88005.0,87988.0,0.05729049]
[1767031327348,0.0395172,88008.0,87980.0,0.09676]
[1767031327649,0.0113749,87999.0,87980.0,0.09676]
[1767031328351,0.00017016,87998.0,87981.0,0.00017049]
[1767031329846,0.01154516,87998.0,87981.0,0.00017049]
[1767031330836,0.0113755,87995.0,87963.0,0.85]
[1767031331044,0.00017016,87998.0,87943.0,0.0113821]
[1767031331240,0.0113786,87971.0,87942.0,0.09672]
[1767031331537,0.0113788,87969.0,87942.0,0.1080522]
[1767031331740,0.09672,87968.0,87942.0,0.09667]
[1767031331945,0.06125453,88006.0,87948.0,0.0113814]
[1767031332150,0.011373,88014.0,87943.0,0.12507595]
[1767031332151,0.15384,88005.0,87943.0,0.11369385]
[1767031332449,0.0113742,88005.0,87978.0,0.0113775]
[1767031332642,0.0113744,88003.0,87978.0,0.0113775]
[1767031332946,0.0395172,88008.0,87963.0,0.09672]
[1767031332947,0.15384,88002.0,87963.0,0.09672]
[1767031333250,0.00017016,87991.0,87984.0,0.0113767]
[1767031333446,0.0395172,88008.0,87974.0,0.00017049]
[1767031333755,0.1414,88007.0,87974.0,0.00017049]
[1767031334046,0.1527739,88007.0,87980.0,0.0113772]
[1767031334242,0.1527739,88007.0,87983.0,0.0113769]
[1767031334742,0.0113744,88003.0,87978.0,0.0113775]
[1767031334946,0.0113244,88003.0,87978.0,0.0113775]
[1767031335252,0.0113244,88003.0,87981.0,0.0113771]
[1767031335444,0.0112744,88003.0,87981.0,0.0113771]
[1767031335843,0.0112744,88003.0,87978.0,0.0113776]
[1767031336144,0.1414,88007.0,87978.0,0.0113776]
[1767031336352,0.0113745,88002.0,87978.0,0.0113776]
[1767031337139,0.0113745,88002.0,87981.0,0.0113772]
[1767031337344,0.0113741,88005.0,87981.0,0.0113772]
[1767031338453,0.0113741,88005.0,87974.0,0.00017049]
[1767031338454,0.0113741,88005.0,87984.0,0.0113768]
[1767031338751,0.0113745,88002.0,87980.0,0.0113772]
[1767031339453,0.0395172,88008.0,87974.0,0.00017049]
[1767031339454,0.1538,88001.0,87983.0,0.0113768]
[1767031339656,0.05708,88000.0,87974.0,0.00017049]
[1767031340749,0.05708,88000.0,87975.0,0.0113779]
[1767031341348,0.05708,88000.0,87974.0,0.00017049]
[1767031341349,0.011375,87998.0,87977.0,0.0113776]
[1767031341748,0.05708,88000.0,87981.0,0.0113771]
[1767031341951,0.0113749,87999.0,87974.0,0.00017049]
[1767031342655,0.0113749,87999.0,87979.0,0.0113773]
[1767031344249,0.05708,88000.0,87983.0,0.0113768]
[1767031344645,0.0395172,88008.0,87983.0,0.0113768]
[1767031344951,0.0113726,88017.0,87974.0,0.00017049]
[1767031344952,0.09672,88019.0,87987.0,0.0113763]
[1767031345147,0.05712,88030.0,87994.0,0.00017049]
[1767031345353,0.01364312,88028.0,88007.0,0.0113738]
[1767031345750,0.01364312,88028.0,87995.0,0.09672]
[1767031345751,0.0113715,88025.0,87995.0,0.09672]
[1767031345952,0.01364312,88028.0,88006.0,0.0113739]
[1767031347757,0.00227202,88028.0,88009.0,0.0113735]
[1767031348057,0.15384,88027.0,88009.0,0.0113735]
[1767031348247,0.05712,88026.0,88009.0,0.0113735]
[1767031348449,0.15384,88026.0,88009.0,0.0113735]
[1767031349054,0.05712,88030.0,88005.0,0.09668]
[1767031349360,0.05712,88030.0,88013.0,0.0113729]
[1767031350055,0.05712,88030.0,88009.0,0.00017049]
[1767031350256,0.05712,88030.0,88010.0,0.0113733]
[1767031351258,0.05712,88030.0,88009.0,0.00017049]
[1767031351259,0.0113711,88028.0,88009.0,0.00017049]
[1767031351663,0.05712,88030.0,88009.0,0.00017049]
[1767031352054,0.01137,88037.0,88009.0,0.00017049]
[1767031352255,0.0113703,88035.0,88011.0,0.0113733]
[1767031352460,0.09668,88034.0,88011.0,0.0113733]
[1767031352652,0.0113705,88033.0,88009.0,0.00017049]
[1767031353963,0.0113725,88018.0,88009.0,9e-08]
[1767031354165,0.1538,88017.0,87992.0,0.0113757]
[1767031355264,0.00017049,88013.0,87996.0,0.00017049]
[1767031355761,0.1538,88012.0,88000.0,0.0113746]
[1767031356664,0.1538,88012.0,87999.0,0.0113748]
[1767031357158,0.1538,88012.0,87996.0,0.00017049]
[1767031357667,0.1538,88012.0,88002.0,0.0113743]
[1767031357867,0.1538,88012.0,88005.0,0.0113741]
[1767031358170,0.15376,88011.0,88005.0,0.0113741]
[1767031359864,0.15376,88011.0,88002.0,0.0113745]
[1767031360064,0.15376,88011.0,87996.0,0.00017049]
[1767031361368,0.15376,88011.0,88002.0,0.0113745]
[1767031361762,0.05708,88011.0,88002.0,0.0113745]
[1767031362563,0.05708,88011.0,87997.0,0.0113751]
[1767031364464,0.0079531,88013.0,87997.0,0.0113751]
[1767031364665,0.0113734,88011.0,87996.0,0.00017049]
[1767031365370,0.0113734,88011.0,87997.0,0.0113751]
[1767031365567,0.05708,88014.0,88001.0,0.0113745]
[1767031365772,0.0610783,88022.0,87996.0,0.00017049]
[1767031366070,0.072449,88032.0,88015.0,0.0113727]
[1767031366367,0.09668,88034.0,87996.0,0.05725049]
[1767031366368,0.05708,88034.0,88010.0,0.09668]
[1767031366574,0.05708,88034.0,88019.0,0.0113722]
[1767031367173,0.0113705,88033.0,88016.0,0.0113727]
[1767031367364,0.05708,88034.0,88013.0,0.00017049]
[1767031367766,0.0113706,88032.0,88014.0,0.0113729]
[1767031367966,0.0113709,88030.0,88013.0,0.00017049]
[1767031368870,0.0113705,88033.0,88013.0,0.01154349]
[1767031369170,0.05708,88034.0,88013.0,0.00017049]
[1767031369375,0.05708,88036.0,88013.0,0.00017049]
[1767031369675,0.05708,88036.0,88017.0,0.0113724]
[1767031369872,0.0113703,88035.0,88014.0,0.0113729]
[1767031370181,0.0113705,88033.0,88014.0,0.0113729]
[1767031370473,0.0113704,88034.0,88015.0,0.0113727]
[1767031370680,0.05708,88033.0,88017.0,0.0113724]
[1767031371068,0.05708,88033.0,88014.0,0.0113729]
[1767031371268,0.05708,88033.0,88013.0,0.00017049]
[1767031371569,0.05708,88033.0,88015.0,0.0113728]
[1767031372186,0.0684506,88033.0,88015.0,0.0113728]
[1767031372682,0.05708,88033.0,88013.0,0.00017049]
[1767031372875,0.0113714,88027.0,88013.0,0.00017049]
[1767031373784,0.0113709,88030.0,88013.0,0.00017049]
[1767031373981,0.0684505,88033.0,88013.0,0.00017049]
[1767031374187,0.0113709,88030.0,88013.0,0.00017049]
[1767031374387,0.0113711,88029.0,88013.0,0.00017049]
[1767031374890,0.0113706,88032.0,88013.0,0.00017049]
[1767031375684,0.0113712,88028.0,88013.0,0.00017049]
[1767031375884,0.0113709,88030.0,87992.0,0.0611978]
[1767031376189,0.0113749,87999.0,87962.0,0.0113796]
[1767031376387,0.14792,87998.0,87962.0,0.0113796]
[1767031376589,0.0113751,87997.0,87975.0,0.0113779]
[1767031376885,0.00017049,87995.0,87977.0,0.00017049]
[1767031377083,0.19037347,87994.0,87977.0,0.00017049]
[1767031377279,0.0113758,87992.0,87977.0,0.00017049]
[1767031377489,0.02519787,87991.0,87977.0,0.00017049]
[1767031377683,0.03655941,87990.0,87977.0,0.00017049]
[1767031377878,0.0113761,87990.0,87977.0,0.00017049]
[1767031378189,0.00017049,87995.0,87977.0,0.00017049]
[1767031378396,0.0113714,88027.0,87977.0,0.00017049]
[1767031378397,0.0113717,88024.0,87977.0,0.00017049]
[1767031378687,0.0113719,88022.0,87988.0,0.0113762]
[1767031378888,0.0113721,88021.0,87974.0,0.09668]
[1767031379094,0.0113746,88002.0,87983.0,0.0113769]
[1767031379288,0.05716,88001.0,87987.0,0.0113763]
[1767031379592,0.05716,88001.0,87985.0,0.00017049]
[1767031379777,0.05716,88001.0,87985.0,9e-08]
[1767031379981,0.011376,87991.0,87985.0,9e-08]
[1767031380183,0.05716,88001.0,87985.0,9e-08]
[1767031380389,0.0113753,87996.0,87985.0,9e-08]
[1767031380580,0.09668,87995.0,87968.0,0.00227357]
[1767031380786,0.0113779,87976.0,87968.0,0.00227357]
[1767031380991,0.0113779,87976.0,87968.0,0.00014906]
[1767031381181,0.05716,87984.0,87968.0,0.00014906]
[1767031381387,0.0113775,87979.0,87968.0,0.00014906]
[1767031381887,0.00010165,87978.0,87968.0,0.00014906]
[1767031382088,0.00010165,87978.0,87969.0,0.0113787]
[1767031382284,0.0610783,88017.0,87975.0,0.0113779]
[1767031382484,0.15384,88011.0,87975.0,0.0113779]
[1767031382681,0.0113757,87993.0,87972.0,0.0113783]
[1767031382880,0.15384,87992.0,87972.0,0.0113783]
[1767031383287,0.15384,87992.0,87973.0,0.00017049]
[1767031383792,0.0113759,87991.0,87973.0,0.00017049]
[1767031384291,0.0113763,87989.0,87973.0,0.00017049]
[1767031384497,0.15384,87992.0,87973.0,0.00017049]
[1767031385188,0.1652158,87992.0,87973.0,0.00017049]
[1767031386688,0.0113761,87990.0,87973.0,0.00017049]
[1767031386883,0.15384,87992.0,87973.0,0.00017049]
[1767031387089,0.0113768,87985.0,87973.0,0.00017049]
[1767031387292,0.011377,87983.0,87973.0,0.00017049]
[1767031387493,0.15384,87992.0,87973.0,4.9e-07]
[1767031387697,0.05716,87991.0,87973.0,4.9e-07]
[1767031387996,0.0113768,87984.0,87973.0,4.9e-07]
[1767031388296,0.0113769,87984.0,87973.0,4.9e-07]
[1767031388688,0.00017,87987.0,87973.0,4.9e-07]
[1767031389188,0.0113775,87979.0,87973.0,4.9e-07]
[1767031389491,0.0113781,87974.0,87973.0,4.9e-07]
[1767031389692,0.0113788,87969.0,87949.0,0.0113812]
[1767031389897,0.0113784,87972.0,87952.0,0.0113809]
[1767031390094,0.0610783,88004.0,87959.0,0.0113799]
[1767031390286,0.0610783,88029.0,87960.0,0.09668]
[1767031390487,0.0113736,88009.0,87992.0,0.0113757]
[1767031390683,0.00017049,88003.0,87995.0,0.0113754]
[1767031390888,0.09668,88015.0,87990.0,0.09668]
[1767031391092,0.09668,88018.0,87992.0,0.0113757]
[1767031391289,0.0113708,88031.0,88007.0,0.0113738]
[1767031391488,0.15112,88030.0,88007.0,0.0113738]
[1767031391889,0.15112,88030.0,88010.0,0.00017049]
[1767031392089,0.0610783,88053.0,88010.0,0.00017049]
[1767031392090,0.0113698,88039.0,88010.0,0.00017049]
[1767031392286,0.01137,88037.0,88013.0,0.0113729]
[1767031392584,0.1764292,88038.0,88010.0,0.00017049]
[1767031392585,0.0113703,88035.0,88015.0,0.0113727]
[1767031392789,0.0258292,88034.0,88015.0,0.0113727]
[1767031392991,0.0258292,88033.0,88015.0,0.0113727]
[1767031393198,0.0258292,88032.0,88015.0,0.0113727]
[1767031393407,0.1080501,88036.0,88015.0,0.0113727]
[1767031393699,0.0258257,88035.0,88015.0,0.0113727]
[1767031393896,0.0258257,88034.0,88015.0,0.0113727]
[1767031394096,0.0258257,88033.0,88015.0,0.0113727]
[1767031394396,0.0258257,88032.0,88015.0,0.0113727]
[1767031394600,0.0258257,88031.0,88015.0,0.0113727]
[1767031394898,0.0258257,88030.0,88015.0,0.0113727]
[1767031395096,0.0258257,88029.0,88017.0,0.0113724]
[1767031395397,0.05724,88028.0,88017.0,0.0113724]
[1767031395787,0.05724,88028.0,88014.0,0.0113729]
[1767031395988,0.05724,88028.0,88012.0,0.0113731]
[1767031396193,0.01363854,88058.0,88010.0,0.00017049]
[1767031396194,0.00227124,88058.0,88010.0,0.00017049]
[1767031396402,0.00227124,88058.0,88042.0,0.0113693]
[1767031396592,0.15396,88057.0,88041.0,0.0113694]
[1767031396792,0.15396,88057.0,88041.0,0.00017039]
[1767031397187,0.15396,88057.0,88042.0,0.0113692]
[1767031397392,0.15396,88056.0,88042.0,0.0113692]
[1767031397593,0.15396,88056.0,88046.0,0.0113688]
[1767031398204,0.00227124,88058.0,88046.0,0.0113688]
[1767031398399,0.05728,88055.0,88046.0,0.0113688]
[1767031398595,0.05728,88055.0,88042.0,0.0113692]
[1767031401604,0.05728,88054.0,88027.0,0.85]
[1767031401902,0.0113696,88040.0,87994.0,0.0113754]
[1767031402202,0.0113704,88034.0,88006.0,0.0113739]
[1767031402494,0.0113706,88032.0,88006.0,0.0113739]
[1767031402698,0.00017006,88028.0,88010.0,0.00017039]
[1767031402901,0.0113714,88026.0,88010.0,3.9e-07]
[1767031405498,0.0113728,88016.0,87968.0,0.09668]
[1767031405703,0.15396,88015.0,87975.0,0.011378]
[1767031406000,0.0113724,88018.0,87996.0,0.0113752]
[1767031406195,0.0113727,88016.0,87996.0,0.0113752]
[1767031406395,0.09668,88015.0,87996.0,0.0113752]
[1767031406704,0.00029461,88014.0,87997.0,0.00017039]
[1767031407099,0.0113735,88010.0,87997.0,3.9e-07]
[1767031408301,0.0113739,88007.0,87997.0,3.9e-07]
[1767031408498,0.05728,88006.0,87997.0,3.9e-07]
[1767031408705,0.09668,88005.0,87997.0,3.9e-07]
[1767031409505,0.09668,88005.0,87987.0,0.0113764]
[1767031409506,0.0113742,88004.0,87982.0,0.011377]
[1767031410206,0.0113742,88004.0,87984.0,0.0113767]
[1767031410604,0.00017039,88003.0,87985.0,0.00017039]
[1767031410900,0.00017039,88003.0,87952.0,0.9782608]
[1767031410901,0.00017039,88003.0,87955.0,0.0113804]
[1767031411104,0.0113748,88000.0,87960.0,0.0113798]
[1767031411301,0.15407296,87999.0,87977.0,0.0113776]
[1767031411507,0.15396,87998.0,87977.0,0.0113776]
[1767031411713,0.15396,87998.0,87962.0,0.0113796]
[1767031411906,0.15396,87998.0,87971.0,0.00017049]
[1767031413107,0.05728,87997.0,87971.0,0.00017049]
[1767031413312,0.15396,87997.0,87978.0,0.0113775]
[1767031414417,0.00011296,87999.0,87971.0,0.00017049]
[1767031414418,0.00011296,87999.0,87989.0,0.0113761]
[1767031414710,0.05728,87996.0,87989.0,0.0113761]
[1767031414907,0.05728,87996.0,87985.0,0.0113766]
[1767031416008,0.05728,87996.0,87980.0,0.0113773]
[1767031416207,0.05728,87996.0,87979.0,0.0113774]
[1767031416410,0.15396,87995.0,87979.0,0.0113774]
[1767031416909,0.1653354,87995.0,87971.0,0.00017049]
[1767031417114,0.011375,87998.0,87981.0,0.0113771]
[1767031417317,0.15396,87997.0,87984.0,0.0113768]
[1767031419317,0.00011296,87999.0,87981.0,0.0113771]
[1767031419719,0.12596,87998.0,87981.0,0.0113771]
[1767031419916,0.00011296,87999.0,87981.0,0.0113771]
[1767031420115,0.15396,87998.0,87981.0,0.0113771]
[1767031420528,0.0113753,87996.0,87971.0,0.00017049]
[1767031420910,0.0113753,87996.0,87980.0,0.0113772]
[1767031421216,0.0113753,87996.0,87971.0,0.00017049]
[1767031421806,0.0113756,87994.0,87971.0,0.00017049]
[1767031422617,0.0113756,87994.0,87978.0,0.0113775]
[1767031423019,0.00011296,87999.0,87983.0,0.0113768]
[1767031423319,0.1536,87998.0,87985.0,0.0113766]
[1767031423520,0.00011296,87999.0,87987.0,0.0113763]
[1767031423521,0.15396,87997.0,87987.0,0.0113763]
[1767031424423,0.15396,87997.0,87984.0,0.0113767]
[1767031425919,0.1653352,87997.0,87981.0,0.0113771]
[1767031426520,0.1653352,87997.0,87983.0,0.0113769]
[1767031426722,0.0113753,87996.0,87971.0,0.00017049]
[1767031427312,0.15396,87995.0,87971.0,0.00017049]
[1767031427505,0.0113755,87994.0,87971.0,0.00017049]
[1767031427714,0.15396,87995.0,87971.0,0.00017049]
[1767031427715,0.0113758,87992.0,87971.0,0.00017049]
[1767031427910,0.15396,87995.0,87971.0,0.01154889]
[1767031428109,0.0113771,87982.0,87971.0,4.9e-07]
[1767031428308,0.1540704,87981.0,87971.0,4.9e-07]
[1767031428513,0.15396,87980.0,87971.0,4.9e-07]
[1767031431215,0.05728,87979.0,87973.0,0.0113781]
[1767031431416,0.03576634,87978.0,87977.0,0.0113776]
[1767031431615,0.05728,87978.0,87977.0,0.0113776]
[1767031432023,0.0113758,87992.0,87977.0,0.0113776]
[1767031432214,0.0113758,87992.0,87974.0,0.011378]
[1767031432410,0.011376,87990.0,87974.0,0.011378]
[1767031432618,0.00017049,87992.0,87976.0,0.0113778]
[1767031432823,0.13176,87991.0,87971.0,4.9e-07]
[1767031433124,0.15396,87990.0,87979.0,0.0113774]
[1767031433716,0.00017049,87992.0,87979.0,0.0113774]
[1767031433918,0.154,87991.0,87979.0,0.0113774]
[1767031434119,0.00017049,87992.0,87979.0,0.0113774]
[1767031434320,0.15396,87991.0,87979.0,0.0113774]
[1767031434521,0.00017049,87992.0,87979.0,0.0113774]
[1767031434722,0.15396,87991.0,87979.0,0.0113774]
[1767031434921,0.00017049,87992.0,87979.0,0.0113774]
[1767031435322,0.15396,87991.0,87976.0,0.0113778]
[1767031435537,0.15396,87990.0,87971.0,4.9e-07]
[1767031436326,0.0113765,87987.0,87972.0,0.0113783]
[1767031438121,0.0113767,87985.0,87971.0,4.9e-07]
[1767031438622,0.0113763,87988.0,87973.0,0.0113782]
[1767031438823,0.02555378,87987.0,87973.0,0.0113782]
[1767031439025,0.0113763,87988.0,87973.0,0.0113782]
[1767031439325,0.02555938,87987.0,87973.0,0.0113782]
[1767031439527,0.0113763,87988.0,87973.0,0.0113782]
[1767031439723,0.0113765,87986.0,87973.0,0.0113782]
[1767031440225,0.0113765,87986.0,87971.0,4.9e-07]
[1767031440937,0.0113765,87986.0,87971.0,0.01137889]
[1767031441431,0.0113765,87986.0,87959.0,9.113e-05]
[1767031441631,0.15396,87990.0,87959.0,9.113e-05]
[1767031441825,0.0113783,87973.0,87959.0,1.13e-06]
[1767031442028,0.15396,87972.0,87959.0,1.13e-06]
[1767031442225,0.15396,87972.0,87959.0,0.01138113]
[1767031442731,0.0113788,87969.0,87959.0,1.13e-06]
[1767031442928,0.00010382,87968.0,87959.0,1.13e-06]
[1767031446034,0.15396,87967.0,87959.0,1.13e-06]
[1767031446430,0.15396,87967.0,87950.0,0.0113811]
[1767031446738,0.0113793,87965.0,87948.0,0.0113814]
[1767031446933,0.0113792,87966.0,87938.0,0.00227434]
[1767031447436,0.0113792,87966.0,87943.0,0.00017049]
[1767031449134,0.0113792,87966.0,87949.0,0.0113812]
[1767031450835,0.02550822,87965.0,87949.0,0.0113812]
[1767031451133,0.0113792,87966.0,87949.0,0.0113812]
[1767031451338,0.02550909,87965.0,87949.0,0.0113812]
[1767031451530,0.0113792,87966.0,87949.0,0.0113812]
[1767031451836,0.02550526,87965.0,87949.0,0.0113812]
[1767031452036,0.0113792,87966.0,87949.0,0.0113812]
[1767031452238,0.02550526,87965.0,87949.0,0.0113812]
[1767031452538,0.0113792,87966.0,87949.0,0.0113812]
[1767031452836,0.0255027,87965.0,87949.0,0.0113812]
[1767031453038,0.0113792,87966.0,87949.0,0.0113812]
[1767031453237,0.02550372,87965.0,87949.0,0.0113812]
[1767031453426,0.0113792,87966.0,87949.0,0.0113812]
[1767031453627,0.02550134,87965.0,87949.0,0.0113812]
[1767031453828,0.0113792,87966.0,87949.0,0.0113812]
[1767031454128,0.02550143,87965.0,87949.0,0.0113812]
[1767031454327,0.0113792,87966.0,87949.0,0.0113812]
[1767031454535,0.15396,87967.0,87943.0,0.00017049]
[1767031456234,0.15396,87967.0,87950.0,0.0113811]
[1767031456428,0.0113792,87966.0,87950.0,0.0113811]
[1767031457031,0.0113799,87960.0,87946.0,0.0113816]
[1767031457227,0.00010382,87968.0,87957.0,0.0113802]
[1767031457432,0.15392,87967.0,87959.0,0.0113799]
[1767031457632,0.0572,87966.0,87961.0,0.0113797]
[1767031458434,0.00017049,87974.0,87968.0,0.0113788]
[1767031458638,0.15392,87973.0,87965.0,0.0113792]
[1767031458932,0.15392,87973.0,87962.0,0.01155009]
[1767031459529,0.15392,87973.0,87962.0,0.00017049]
[1767031460939,0.0572,87972.0,87964.0,0.0113793]
[1767031462034,0.0572,87972.0,87966.0,0.0113791]
[1767031462243,9e-08,87974.0,87962.0,0.00017049]
[1767031462539,9e-08,87974.0,87970.0,0.0113785]
[1767031462843,0.01301328,87976.0,87962.0,0.00017049]
[1767031463149,0.0572,87976.0,87962.0,0.00017049]
[1767031464139,0.00017049,87978.0,87973.0,0.0113782]
[1767031464342,0.05737049,87978.0,87973.0,0.0113782]
[1767031464843,0.00017049,87978.0,87962.0,0.00017049]
[1767031465034,0.06099565,88004.0,87973.0,0.0113782]
[1767031465242,0.02551293,88003.0,87990.0,0.0113759]
[1767031465440,0.02551293,88002.0,87990.0,0.0113759]
[1767031465643,0.02551293,88001.0,87978.0,0.0113775]
[1767031465846,0.02551293,88000.0,87978.0,0.0113775]
[1767031466037,0.00017049,87998.0,87989.0,0.011376]
[1767031466239,0.02551293,87997.0,87989.0,0.011376]
[1767031466436,0.00017049,87998.0,87986.0,0.0113765]
[1767031466640,0.02550008,87997.0,87986.0,0.0113765]
[1767031466840,0.00017049,87998.0,87986.0,0.0113765]
[1767031467136,0.02550038,87997.0,87986.0,0.0113765]
[1767031467332,0.00017049,87998.0,87986.0,0.0113765]
[1767031467531,0.02549421,87997.0,87986.0,0.0113765]
[1767031467737,0.00017049,87998.0,87986.0,0.0113765]
[1767031467933,0.02549421,87997.0,87986.0,0.0113765]
[1767031468148,0.00017049,87998.0,87986.0,0.0113765]
[1767031468351,0.02549493,87997.0,87986.0,0.0113765]
[1767031468549,0.00017049,87998.0,87989.0,0.0113761]
[1767031468750,0.02548849,87997.0,87989.0,0.0113761]
[1767031469048,0.00017049,87998.0,87989.0,0.0113761]
[1767031472742,0.00017049,87998.0,87986.0,0.0113765]
[1767031474152,0.00017049,87998.0,87988.0,0.0113762]
[1767031475844,0.00017049,87998.0,87990.0,0.0113759]
[1767031476155,0.00017049,87998.0,87987.0,0.0113764]
[1767031477353,0.06099565,88020.0,87981.0,0.00017049]
[1767031477551,0.09672,88021.0,88008.0,0.0113736]
[1767031477853,0.0572,88022.0,88008.0,0.0113737]
[1767031478055,0.0572,88022.0,87998.0,0.108095]
[1767031478457,9e-08,88019.0,88001.0,0.00017049]
[1767031478649,9e-08,88019.0,88016.0,0.0113726]
[1767031478844,0.0113691,88044.0,88009.0,0.09672]
[1767031479053,0.09672,88037.0,88009.0,0.09672]
[1767031479255,0.02543507,88036.0,88021.0,0.0113719]
[1767031479451,0.09672,88037.0,88021.0,0.0113719]
[1767031479753,0.02542214,88036.0,88021.0,0.0113719]
[1767031479948,0.00016978,88038.0,88020.0,0.00017039]
[1767031480150,0.00016978,88038.0,88028.0,0.011371]
[1767031480456,0.00016978,88038.0,88021.0,0.0113719]
[1767031480657,0.00016978,88038.0,88025.0,0.0113715]
[1767031481158,0.00016978,88038.0,88028.0,0.0113711]
[1767031481455,0.00016978,88038.0,88022.0,0.0113718]
[1767031481854,0.00016978,88038.0,88025.0,0.0113715]
[1767031482452,0.0113702,88035.0,88020.0,0.09685039]
[1767031482649,0.01153958,88038.0,88020.0,0.09685039]
[1767031482957,0.01153958,88038.0,88020.0,0.10822239]
[1767031483357,0.0113702,88036.0,88020.0,0.09685039]
[1767031484753,0.00016978,88038.0,88020.0,0.00017039]
[1767031484955,0.00016978,88038.0,88010.0,0.0113734]
[1767031485259,0.0113713,88027.0,88010.0,0.0113734]
[1767031485958,0.0113713,88027.0,88010.0,0.01154379]
[1767031486360,0.1652109,88030.0,88012.0,0.0113731]
[1767031488654,0.0113714,88026.0,88010.0,0.00017039]
[1767031488962,0.011371,88029.0,88010.0,0.01154369]
[1767031491358,0.011371,88029.0,88012.0,0.0113731]
[1767031491562,0.15384,88030.0,88010.0,0.00017039]
[1767031491758,0.15384,88030.0,88015.0,0.0113727]
[1767031492067,0.15384,88030.0,88018.0,0.0113724]
[1767031492258,0.05716,88030.0,88018.0,0.0113724]
[1767031492455,0.05716,88032.0,88020.0,0.0113721]
[1767031492656,0.05716,88032.0,88017.0,0.0113725]